bitfinex/quotes_SOLUSD_20250118
["timestamp","ask_amount","ask_price","bid_price","bid_amount"]
[1737218536740,0.70442106,248.4,247.77,11.97]
[1737218536921,4.0254,248.42,247.73,20.7441]
[1737218536922,4.0254,248.42,247.78,16.70117101]
[1737218537123,20.14884057,248.61,247.78,16.70117101]
[1737218537124,10.0563,248.6,247.8,41.97]
[1737218537317,14.0788,248.6,247.82,11.97]
[1737218537640,32.35829732,248.3,248.18,32.35829732]
[1737218537938,32.35829732,248.37,248.25,32.35829732]
[1737218538535,32.35829732,248.39,248.27,32.35829732]
[1737218538837,32.35829732,248.33,248.21,32.35829732]
[1737218539222,32.35829732,248.35,248.23,32.35829732]
[1737218539421,32.35829732,248.37,248.25,32.35829732]
[1737218539636,32.35829732,248.27,248.13,32.35829732]
[1737218539825,32.35829732,248.22,248.1,32.35829732]
[1737218540145,32.35829732,248.24,248.12,32.35829732]
[1737218540443,32.35829732,248.33,248.2,32.35829732]
[1737218541242,32.35829732,248.39,248.26,32.35829732]
[1737218541449,27.87646854,248.39,248.27,31.90426854]
[1737218541619,27.87646854,248.35,248.23,27.87646854]
[1737218541824,27.87646854,248.42,248.31,27.87646854]
[1737218542025,14.0799,248.58,248.33,27.87646854]
[1737218542239,27.87646854,248.42,248.21,14.1009]
[1737218542446,14.0799,248.58,248.24,27.87646854]
[1737218542741,27.87646854,248.4,248.28,27.87646854]
[1737218543129,27.87646854,248.44,248.32,27.87646854]
[1737218543330,27.87646854,248.5,248.38,27.87646854]
[1737218543537,27.87646854,248.54,248.43,27.87646854]
[1737218544445,27.87646854,248.49,248.37,27.87646854]
[1737218544643,44.3035,248.64,248.17,20.1466]
[1737218544644,27.87646854,248.43,248.31,27.87646854]
[1737218544941,11.97,248.63,248.35,27.87646854]
[1737218545145,27.87646854,248.53,248.42,27.87646854]
[1737218545938,27.87646854,248.57,248.46,27.87646854]
[1737218546850,0.063,248.64,248.5,27.87646854]
[1737218547030,0.063,248.64,248.47,14.0861]
[1737218547031,27.87646854,248.58,248.47,41.96256854]
[1737218547427,27.87646854,248.62,248.49,27.87646854]
[1737218547734,27.87646854,248.62,248.51,27.87646854]
[1737218548143,27.87646854,248.6,248.48,27.87646854]
[1737218548344,27.87646854,248.62,248.5,27.87646854]
[1737218548650,27.87646854,248.54,248.47,14.0861]
[1737218548855,27.87646854,248.56,248.47,14.0861]
[1737218549022,27.87646854,248.62,248.51,27.87646854]
[1737218549226,0.063,248.64,248.57,27.87646854]
[1737218549425,0.063,248.64,248.59,27.87646854]
[1737218549646,0.063,248.64,248.61,27.87646854]
[1737218550040,27.87646854,248.72,248.63,27.87646854]
[1737218550346,5.48138732,248.93,248.71,27.87646854]
[1737218550536,27.87646854,248.86,248.75,27.87646854]
[1737218550736,4.0171,248.93,248.69,27.87646854]
[1737218551047,27.87646854,248.8,248.68,27.87646854]
[1737218551353,4.0163,248.98,248.72,27.87646854]
[1737218551652,27.87646854,248.79,248.68,27.87646854]
[1737218551832,27.87646854,248.81,248.68,27.87646854]
[1737218552035,27.87646854,248.83,248.7,27.87646854]
[1737218552351,27.87646854,248.78,248.66,27.87646854]
[1737218552554,27.87646854,248.74,248.62,27.87646854]
[1737218552732,27.87646854,248.7,248.58,27.87646854]
[1737218553133,27.87646854,248.66,248.56,27.87646854]
[1737218553333,27.87646854,248.64,248.52,27.87646854]
[1737218553533,27.87646854,248.72,248.6,27.87646854]
[1737218553728,4.0183,248.86,248.64,27.87646854]
[1737218553956,27.87646854,248.77,248.66,27.87646854]
[1737218554327,14.0641,248.86,248.49,0.60310583]
[1737218554733,20.088,248.91,248.5,34.2051]
[1737218554956,20.0,248.88,248.51,0.60323435]
[1737218555337,27.87646854,248.69,248.59,27.87646854]
[1737218555635,27.87646854,248.6,248.51,0.60323435]
[1737218555837,27.87646854,248.62,248.51,27.87646854]
[1737218556036,221.54057688,248.91,248.46,4.0247]
[1737218556037,27.87646854,248.64,248.53,27.87646854]
[1737218556240,14.0561,249.0,248.59,12.9994]
[1737218556440,4.016,249.0,248.6,0.60302449]
[1737218556758,5.48034787,249.0,248.61,4.0223]
[1737218556965,20.0,248.96,248.47,0.6030763]
[1737218557139,0.70442106,248.99,248.48,14.0855]
[1737218557346,12.67442106,248.99,248.49,0.60318868]
[1737218557534,27.87646854,248.71,248.58,27.87646854]
[1737218557731,27.87646854,248.65,248.52,27.87646854]
[1737218557956,27.87646854,248.65,248.48,4.62782983]
[1737218557957,27.87646854,248.94,248.53,0.60352415]
[1737218558270,11.97,248.93,248.51,20.0]
[1737218558455,11.97,248.93,248.52,0.6034106]
[1737218558964,20.0,248.88,248.53,4.0236]
[1737218559161,20.0,248.88,248.54,0.603328]
[1737218559340,27.87646854,248.74,248.62,27.87646854]
[1737218559536,27.87646854,248.66,248.54,27.87646854]
[1737218559742,27.87646854,248.55,248.41,4.62891401]
[1737218560058,1.46491961,248.91,248.54,27.87646854]
[1737218560246,27.87646854,248.75,248.61,27.87646854]
[1737218560759,2.6801215,248.9,248.63,27.87646854]
[1737218560957,27.87646854,248.72,248.61,27.87646854]
[1737218561253,27.87646854,248.63,248.51,27.87646854]
[1737218561759,27.87646854,248.63,248.49,27.87646854]
[1737218561956,11.97,248.72,248.45,27.87646854]
[1737218562146,27.87646854,248.49,248.29,4.0275]
[1737218562348,20.0,248.64,248.35,27.87646854]
[1737218562547,31.97,248.64,248.29,4.0275]
[1737218562744,20.70442106,248.64,248.3,0.60404304]
[1737218562946,201.45257688,248.77,248.3,0.60404304]
[1737218562947,201.45257688,248.87,248.5,27.87646854]
[1737218563148,1.51949786,248.81,248.43,20.0]
[1737218563350,14.0641,248.86,248.44,0.60353242]
[1737218563547,14.0641,248.86,248.56,0.03]
[1737218563763,4.0183,248.86,248.56,0.03]
[1737218564063,30.30177317,248.78,248.66,30.30177317]
[1737218564250,4.0183,248.86,248.56,30.93501999]
[1737218564251,30.30177317,248.69,248.56,30.93501999]
[1737218564433,30.30177317,248.62,248.56,0.03]
[1737218564637,30.30177317,248.58,248.56,0.03]
[1737218564945,26.0403,248.75,248.56,0.03]
[1737218565151,20.0,248.72,248.29,0.6036138]
[1737218565444,31.97,248.66,248.18,0.60394014]
[1737218565656,11.97,248.57,248.19,4.0291]
[1737218565837,12.67442106,248.56,248.19,4.0291]
[1737218566044,30.30177317,248.38,248.26,30.30177317]
[1737218566242,30.30177317,248.38,248.27,0.60409438]
[1737218566543,30.30177317,248.38,248.26,30.30177317]
[1737218566853,30.30177317,248.4,248.15,30.30177317]
[1737218567059,30.30177317,248.32,248.21,30.30177317]
[1737218567257,4.0239,248.51,248.25,30.30177317]
[1737218567461,30.30177317,248.34,248.23,30.30177317]
[1737218567652,20.0,248.48,248.17,0.60410984]
[1737218567858,30.30177317,248.31,248.19,30.30177317]
[1737218568050,30.30177317,248.4,248.19,30.30177317]
[1737218568365,30.30177317,248.23,248.11,30.30177317]
[1737218568844,30.30177317,248.23,248.06,20.1556]
[1737218568845,30.30177317,248.28,248.16,30.30177317]
[1737218569044,30.30177317,248.28,248.12,0.60449812]
[1737218569045,30.30177317,248.24,248.11,34.33217317]
[1737218569245,30.30177317,248.27,248.15,30.30177317]
[1737218569451,30.30177317,248.27,248.16,0.60429041]
[1737218569640,30.30177317,248.27,248.15,30.30177317]
[1737218569971,30.30177317,248.29,248.17,30.30177317]
[1737218570140,30.30177317,248.37,248.25,30.30177317]
[1737218570333,30.30177317,248.37,248.27,30.30177317]
[1737218570569,30.30177317,248.43,248.31,30.30177317]
[1737218570860,4.0239,248.51,248.17,0.6039998]
[1737218571063,30.30177317,248.31,248.18,30.30177317]
[1737218571269,30.30177317,248.31,248.18,0.6042435]
[1737218571435,30.30177317,248.31,248.2,30.30177317]
[1737218571753,30.30177317,248.3,248.18,30.90601574]
[1737218571952,30.30177317,248.24,248.13,4.0301]
[1737218572155,30.30177317,248.18,248.06,34.33297317]
[1737218572853,30.30177317,248.28,248.06,34.33297317]
[1737218573054,30.30177317,248.18,248.06,34.33297317]
[1737218573458,30.30177317,248.18,247.93,0.60447913]
[1737218573459,30.30177317,248.08,247.94,14.1162]
[1737218573643,30.30177317,248.03,247.94,4.0332]
[1737218573969,30.30177317,247.96,247.84,0.6049289]
[1737218574146,30.30177317,247.93,247.85,4.0346]
[1737218574347,30.30177317,248.04,247.87,30.30177317]
[1737218574555,30.30177317,247.96,247.85,14.1213]
[1737218574751,20.0,248.01,247.79,4.0356]
[1737218575063,30.30177317,247.84,247.78,0.03]
[1737218575260,30.30177317,247.85,247.78,0.03]
[1737218575460,30.30177317,247.87,247.78,0.03]
[1737218575671,30.30177317,247.79,247.78,0.03]
[1737218575856,30.30177317,247.84,247.78,0.03]
[1737218576048,30.30177317,247.92,247.78,0.03]
[1737218576249,30.30177317,247.86,247.78,0.03]
[1737218576643,30.30177317,247.8,247.78,0.03]
[1737218577249,30.30177317,247.82,247.78,0.03]
[1737218577454,30.30177317,247.87,247.78,0.03]
[1737218577747,1.51083142,247.96,247.78,0.03]
[1737218577948,30.30177317,247.84,247.78,0.03]
[1737218579665,30.30177317,247.8,247.78,0.03]
[1737218580674,4.0343,247.88,247.78,0.03]
[1737218580850,4.0343,247.88,247.71,20.0]
[1737218580851,30.30177317,247.79,247.71,20.0]
[1737218581152,4.0343,247.88,247.71,20.0]
[1737218581351,30.30177317,247.82,247.73,20.0]
[1737218581561,30.30177317,247.92,247.71,0.60551558]
[1737218581562,30.30177317,247.84,247.71,0.60551558]
[1737218581760,30.30177317,247.84,247.67,14.1316]
[1737218581761,30.30177317,247.84,247.72,30.30177317]
[1737218582072,30.30177317,247.88,247.76,30.30177317]
[1737218582270,30.30177317,247.88,247.79,20.0]
[1737218582575,30.30177317,248.0,247.89,20.0]
[1737218582766,30.30177317,248.1,247.99,30.30177317]
[1737218582966,30.30177317,248.2,248.08,30.30177317]
[1737218583152,14.0974,248.27,247.93,0.60462571]
[1737218583346,14.0974,248.27,247.92,0.60479605]
[1737218583672,11.97,248.22,247.82,0.60492882]
[1737218583968,11.97,248.22,247.81,4.6403397]
[1737218584171,11.97,248.13,247.77,4.0359]
[1737218584357,30.30177317,247.94,247.82,30.30177317]
[1737218584674,30.30177317,247.89,247.77,34.33767317]
[1737218584875,30.30177317,247.95,247.83,30.30177317]
[1737218585558,30.30177317,247.95,247.84,0.60524757]
[1737218585752,30.30177317,247.99,247.88,30.30177317]
[1737218585953,30.30177317,248.05,247.94,30.30177317]
[1737218586255,30.30177317,248.08,247.96,30.30177317]
[1737218586451,30.30177317,247.97,247.83,30.30177317]
[1737218586672,30.30177317,247.91,247.81,34.33697317]
[1737218586850,11.97,248.0,247.69,0.60523588]
[1737218587056,30.30177317,247.71,247.57,42.50937317]
[1737218587275,11.97,247.91,247.56,30.30177317]
[1737218587451,30.30177317,247.74,247.63,30.30177317]
[1737218587650,30.30177317,247.74,247.64,0.605652]
[1737218587851,30.30177317,247.76,247.65,30.30177317]
[1737218588068,30.30177317,247.8,247.69,30.30177317]
[1737218588283,30.30177317,247.86,247.75,30.30177317]
[1737218588558,30.30177317,247.82,247.71,30.30177317]
[1737218588759,30.30177317,247.82,247.71,34.33857317]
[1737218589250,30.30177317,247.74,247.62,30.30177317]
[1737218589772,30.30177317,247.72,247.6,30.30177317]
[1737218589963,30.30177317,247.65,247.54,30.30177317]
[1737218590163,30.30177317,247.69,247.56,30.30177317]
[1737218590471,30.30177317,247.65,247.55,4.0395]
[1737218590673,30.30177317,247.61,247.53,0.03]
[1737218590879,30.30177317,247.65,247.54,30.30177317]
[1737218591265,30.30177317,247.57,247.53,0.03]
[1737218591574,30.30177317,247.62,247.55,20.0]
[1737218591774,0.44,247.61,247.45,0.60591921]
[1737218591978,30.30177317,247.47,247.37,34.34427317]
[1737218592175,30.30177317,247.41,247.36,0.03]
[1737218592473,30.30177317,247.47,247.37,4.0425]
[1737218592776,30.30177317,247.39,247.36,0.03]
[1737218592965,30.30177317,247.39,247.2,30.30177317]
[1737218592966,30.30177317,247.37,247.03,12.2076]
[1737218593163,30.30177317,247.31,247.2,30.30177317]
[1737218593366,0.44,247.3,247.22,30.30177317]
[1737218593663,30.30177317,247.28,247.19,30.30177317]
[1737218593864,30.30177317,247.31,247.21,30.30177317]
[1737218594063,30.30177317,247.31,247.22,0.60669506]
[1737218594356,30.30177317,247.31,247.21,30.30177317]
[1737218594663,30.30177317,247.32,247.21,30.30177317]
[1737218594864,20.20721267,247.6,247.08,30.30177317]
[1737218594865,4.0369,247.71,247.31,30.30177317]
[1737218595181,30.30177317,247.56,247.45,30.30177317]
[1737218595472,10.094,247.67,247.32,0.60632526]
[1737218595783,20.0,247.64,247.23,0.60617178]
[1737218595966,0.70442106,247.63,247.24,0.60664237]
[1737218596161,20.0,247.6,247.22,4.0449]
[1737218596360,0.70442106,247.59,247.22,4.0449]
[1737218596562,20.0,247.54,247.17,4.65235302]
[1737218596755,30.30177317,247.35,247.24,30.30177317]
[1737218596966,30.30177317,247.29,247.18,30.30177317]
[1737218597386,30.30177317,247.25,247.14,30.30177317]
[1737218598063,30.30177317,247.32,246.84,30.30177317]
[1737218598064,30.30177317,247.16,247.01,30.30177317]
[1737218598260,30.30177317,247.17,247.02,0.60727425]
[1737218598462,30.30177317,247.19,247.07,30.30177317]
[1737218598663,30.30177317,247.21,247.11,30.30177317]
[1737218598862,30.30177317,247.21,246.86,12.7565]
[1737218598863,30.30177317,247.23,247.18,0.03]
[1737218599364,30.30177317,247.29,247.18,0.03]
[1737218599569,30.30177317,247.19,247.18,0.03]
[1737218599875,30.30177317,247.19,247.04,4.0479]
[1737218600073,30.30177317,247.19,246.97,10.72975976]
[1737218600074,30.30177317,247.12,247.01,30.30177317]
[1737218600284,30.30177317,247.14,247.03,30.30177317]
[1737218600664,66.6997,247.39,247.11,30.30177317]
[1737218600870,30.30177317,247.22,247.11,30.30177317]
[1737218601184,30.30177317,247.18,247.07,30.30177317]
[1737218601367,30.30177317,247.18,247.05,30.30177317]
[1737218601681,30.30177317,247.14,247.04,30.30177317]
[1737218601880,30.30177317,247.05,246.87,0.60715889]
[1737218602062,30.30177317,247.0,246.88,4.0504]
[1737218602389,30.30177317,246.94,246.81,30.30177317]
[1737218602570,30.30177317,246.94,246.62,8.0891]
[1737218602784,30.30177317,246.95,246.83,30.30177317]
[1737218603080,30.30177317,246.97,246.84,30.30177317]
[1737218603374,30.30177317,246.89,246.76,30.30177317]
[1737218603579,30.30177317,246.89,246.78,30.30177317]
[1737218603779,30.30177317,246.93,246.82,30.30177317]
[1737218603991,30.30177317,246.91,246.78,30.30177317]
[1737218604166,30.30177317,246.87,246.76,30.30177317]
[1737218604483,30.30177317,246.9,246.73,14.1855]
[1737218604664,30.30177317,246.92,246.78,30.30177317]
[1737218604864,30.30177317,246.84,246.73,4.053]
[1737218605167,30.30177317,246.86,246.75,30.30177317]
[1737218605683,30.30177317,246.88,246.75,30.30177317]
[1737218605880,30.30177317,246.77,246.67,4.0538]
[1737218606086,30.30177317,246.79,246.67,34.35557317]
[1737218606666,30.30177317,246.77,246.65,30.30177317]
[1737218606866,30.30177317,246.73,246.6,30.30177317]
[1737218607062,30.30177317,246.73,246.62,34.35657317]
[1737218607266,30.30177317,246.68,246.55,30.30177317]
[1737218607577,30.30177317,246.72,246.59,30.30177317]
[1737218607760,30.30177317,246.72,246.6,0.60822428]
[1737218607964,30.30177317,246.64,246.52,4.0564]
[1737218608177,30.30177317,246.62,246.52,4.0564]
[1737218608377,30.30177317,246.57,246.44,30.30177317]
[1737218608585,30.30177317,246.57,246.44,34.35947317]
[1737218608883,30.30177317,246.61,246.48,30.30177317]
[1737218609191,30.30177317,246.61,246.5,30.30177317]
[1737218609484,30.30177317,246.55,246.44,30.30177317]
[1737218609983,30.30177317,246.67,246.54,30.30177317]
[1737218610165,33.37792011,246.93,246.48,30.30177317]
[1737218610166,4.0515,246.82,246.65,30.30177317]
[1737218610365,30.30177317,246.76,246.65,30.30177317]
[1737218610567,4.0515,246.82,246.49,0.60812951]
[1737218610786,30.30177317,246.61,246.41,0.60834919]
[1737218610971,30.30177317,246.61,246.48,30.30177317]
[1737218611287,4.0533,246.71,246.47,0.03]
[1737218611476,14.1866,246.71,246.47,0.03]
[1737218611779,30.30177317,246.59,246.47,0.03]
[1737218611981,30.30177317,246.59,246.47,4.69583269]
[1737218612178,30.30177317,246.57,246.47,0.03]
[1737218612382,30.30177317,246.53,246.47,0.03]
[1737218612690,34.4533,246.71,246.47,4.0871]
[1737218612993,30.30177317,246.5,246.47,0.03]
[1737218613184,4.0553,246.59,246.47,0.03]
[1737218613185,30.30177317,246.48,246.47,0.03]
[1737218613491,60.60354634,246.48,246.47,0.03]
[1737218613875,30.30177317,246.48,246.47,0.03]
[1737218614072,30.30177317,246.48,246.4,4.0584]
[1737218614383,14.1935,246.59,246.4,4.0584]
[1737218614579,30.30177317,246.43,246.31,30.30177317]
[1737218614781,30.30177317,246.45,246.31,30.30177317]
[1737218615084,30.30177317,246.45,246.36,20.0]
[1737218615283,30.30177317,246.45,246.35,4.0592]
[1737218615476,30.30177317,246.47,246.35,4.0592]
[1737218615795,30.30177317,246.39,246.28,30.30177317]
[1737218615970,30.30177317,246.39,246.26,30.30177317]
[1737218616287,30.30177317,246.41,246.3,30.30177317]
[1737218616484,30.30177317,246.44,246.3,30.30177317]
[1737218616663,30.30177317,246.41,246.27,30.30177317]
[1737218616983,30.30177317,246.48,246.24,30.91075099]
[1737218616984,30.30177317,246.36,246.24,30.91075099]
[1737218617187,30.30177317,246.36,246.25,4.0609]
[1737218617483,30.30177317,246.36,246.25,4.66997149]
[1737218617782,30.30177317,246.36,246.25,4.66994755]
[1737218617974,30.30177317,246.36,246.25,4.0609]
[1737218618167,30.30177317,246.36,246.26,0.6090566]
[1737218618368,30.30177317,246.32,246.17,0.60900783]
[1737218618587,30.30177317,246.34,246.24,4.0609]
[1737218619169,30.30177317,246.36,246.25,0.60906913]
[1737218619373,30.30177317,246.4,246.28,30.30177317]
[1737218619568,4.0541,246.66,246.41,20.0]
[1737218619774,72.8262971,246.96,246.49,30.30177317]
[1737218619775,30.30177317,246.61,246.49,30.30177317]
[1737218619977,30.30177317,246.61,246.36,43.01957317]
[1737218619978,30.30177317,246.84,246.6,20.0]
[1737218620170,30.0,246.87,246.61,0.6081743]
[1737218620387,16.226943,246.83,246.48,0.60792959]
[1737218620586,16.226943,246.83,246.39,20.0]
[1737218620892,1.54959443,246.87,246.4,0.60826014]
[1737218621087,60.769947,246.91,246.4,0.60826014]
[1737218621288,30.30177317,246.7,246.59,30.30177317]
[1737218621589,30.30177317,246.66,246.55,34.35767317]
[1737218621781,30.30177317,246.74,246.62,30.30177317]
[1737218621987,14.1751,246.91,246.7,30.30177317]
[1737218622289,30.30177317,246.9,246.78,30.30177317]
[1737218622489,30.30177317,246.92,246.8,30.30177317]
[1737218622683,12.13,247.02,246.81,0.60772156]
[1737218622684,30.30177317,247.02,246.81,0.60772156]
[1737218622989,30.30177317,247.02,246.74,20.0]
[1737218622990,30.30177317,247.09,246.76,23.776884]
[1737218623197,4.0494,246.95,246.72,0.60735227]
[1737218623379,12.4658,246.94,246.56,0.60796475]
[1737218623578,20.53585348,246.84,246.38,30.30177317]
[1737218623779,20.53585348,246.84,246.32,30.0]
[1737218623780,201.21149439,246.64,246.32,30.0]
[1737218623977,4.042,246.6,246.2,4.0917]
[1737218624196,30.30177317,246.28,246.2,0.63916271]
[1737218624396,30.60547294,246.23,246.2,0.03]
[1737218624590,203.24824117,246.45,246.04,4.67381713]
[1737218624779,30.60547294,246.24,246.13,30.60547294]
[1737218624976,30.60547294,246.29,246.15,30.60547294]
[1737218625176,15.95421318,246.53,246.19,30.60547294]
[1737218625389,30.60547294,246.26,246.12,30.60547294]
[1737218625578,14.90192106,246.52,246.22,30.60547294]
[1737218625774,4.0564,246.52,246.24,12.7255]
[1737218625979,203.24824117,246.78,246.31,20.0]
[1737218626275,4.0513,246.83,246.54,20.0]
[1737218626475,30.60547294,246.87,246.74,30.60547294]
[1737218626693,14.1734,246.94,246.6,0.60784021]
[1737218626989,14.1734,246.94,246.53,16.213774]
[1737218627194,14.1734,246.94,246.54,0.60816916]
[1737218627380,14.1734,246.94,246.55,14.1958]
[1737218627578,14.1734,246.94,246.58,20.0]
[1737218627784,30.60547294,246.77,246.62,30.60547294]
[1737218628086,30.60547294,246.87,246.63,0.60814042]
[1737218628303,0.063,246.95,246.85,30.60547294]
[1737218628484,30.66847294,246.95,246.81,30.60547294]
[1737218628686,34.4829,246.95,246.61,0.60775976]
[1737218628886,34.4829,246.95,246.47,0.60835523]
[1737218628887,0.70442106,246.94,246.47,0.60835523]
[1737218629087,0.70442106,246.94,246.48,0.60841474]
[1737218629287,14.174,246.93,246.54,20.0]
[1737218629592,4.0497,246.93,246.55,0.60782211]
[1737218629891,30.60547294,246.9,246.77,30.60547294]
[1737218630097,30.60547294,246.92,246.79,30.60547294]
[1737218630394,30.60547294,246.81,246.61,0.60770329]
[1737218630592,20.0,246.9,246.67,30.60547294]
[1737218630792,20.0,246.78,246.64,30.60547294]
[1737218631099,34.4226,246.93,246.76,30.60547294]
[1737218631100,30.60547294,246.88,246.76,30.60547294]
[1737218631394,12.13,246.76,246.47,31.21326585]
[1737218631602,30.60547294,246.58,246.39,0.60857104]
[1737218631775,54.7043,246.78,246.37,30.60865098]
[1737218632095,30.60547294,246.5,246.37,30.60547294]
[1737218632273,30.60547294,246.52,246.39,30.60547294]
[1737218632475,30.60547294,246.5,246.36,30.60547294]
[1737218632670,30.60547294,246.72,246.32,12.7355]
[1737218632671,30.60547294,246.72,246.47,30.60547294]
[1737218632887,30.60547294,246.61,246.35,0.60849373]
[1737218633092,23.776884,246.58,246.46,30.60547294]
[1737218633284,23.776884,246.58,246.35,0.60850553]
[1737218633480,30.60547294,246.53,246.39,30.60547294]
[1737218633690,30.60547294,246.53,246.4,0.60879372]
[1737218633897,34.66107294,246.57,246.43,30.60547294]
[1737218634198,30.60547294,246.51,246.37,31.21410836]
[1737218634383,23.776884,246.48,246.35,30.60547294]
[1737218634581,23.776884,246.48,246.27,0.60879069]
[1737218634582,30.60547294,246.4,246.27,0.60879069]
[1737218634792,30.60547294,246.4,246.27,30.60547294]
[1737218635095,30.60547294,246.55,246.28,0.60897054]
[1737218635395,20.2764,246.6,246.33,10.1489]
[1737218635396,30.60547294,246.45,246.33,10.1489]
[1737218635704,4.0553,246.59,246.12,20.3151]
[1737218635705,30.60547294,246.4,246.28,30.60547294]
[1737218635875,30.60547294,246.44,246.3,30.60547294]
[1737218636072,30.60547294,246.46,246.32,30.60547294]
[1737218636295,1.54495546,246.58,246.39,30.60547294]
[1737218636592,30.60547294,246.53,246.41,30.60547294]
[1737218636891,30.60547294,246.57,246.45,30.60547294]
[1737218637092,30.60547294,246.49,246.37,30.60547294]
[1737218637294,30.60547294,246.56,246.43,30.60547294]
[1737218637595,48.25081434,246.77,246.49,30.60547294]
[1737218637596,30.60547294,246.62,246.49,30.60547294]
[1737218637893,30.60547294,246.58,246.47,30.60547294]
[1737218638079,4.0533,246.71,246.53,30.60547294]
[1737218638282,4.0533,246.71,246.39,0.60838976]
[1737218638483,4.0533,246.71,246.19,20.3095]
[1737218638484,23.776884,246.45,246.34,30.60547294]
[1737218638701,0.70442106,246.7,246.36,30.60547294]
[1737218638873,30.60547294,246.47,246.36,30.60547294]
[1737218639078,30.60547294,246.49,246.37,0.60878596]
[1737218639386,30.60547294,246.52,246.4,30.60547294]
[1737218639592,30.60547294,246.56,246.42,30.60547294]
[1737218639894,30.60547294,246.6,246.48,30.60547294]
[1737218640095,30.60547294,246.56,246.44,30.60547294]
[1737218640297,30.60547294,246.49,246.37,30.60547294]
[1737218640595,30.60547294,246.5,246.38,0.60885719]
[1737218640787,30.60547294,246.52,246.39,30.60547294]
[1737218640982,30.60547294,246.49,246.37,30.60547294]
[1737218641385,30.60547294,246.51,246.37,30.60547294]
[1737218641694,4.0554,246.58,246.43,30.60547294]
[1737218641880,30.60547294,246.49,246.38,0.60864971]
[1737218642083,30.60547294,246.51,246.39,30.60547294]
[1737218642285,30.60547294,246.55,246.41,30.60547294]
[1737218642798,30.60547294,246.53,246.41,30.60547294]
[1737218643188,30.60547294,246.49,246.37,30.60547294]
[1737218643388,30.60547294,246.45,246.33,30.60547294]
[1737218643603,34.66317294,246.45,246.33,34.66497294]
[1737218643981,30.60547294,246.39,246.25,0.60888489]
[1737218644202,30.60547294,246.43,246.3,30.60547294]
[1737218644683,30.60547294,246.43,246.31,0.60894381]
[1737218644999,30.60547294,246.33,246.2,0.03]
[1737218645199,30.60547294,246.28,246.2,0.03]
[1737218645584,34.66567294,246.3,246.2,0.03]
[1737218645787,30.60547294,246.36,246.2,0.03]
[1737218645788,30.60547294,246.34,246.22,30.60547294]
[1737218645987,30.60547294,246.48,246.2,0.03]
[1737218645988,30.60547294,246.38,246.26,30.60547294]
[1737218646199,30.60547294,246.29,246.2,0.03]
[1737218647098,12.13,246.44,246.21,30.60547294]
[1737218647303,12.13,246.44,246.2,0.03]
[1737218647304,30.60547294,246.29,246.2,0.03]
[1737218647487,4.0604,246.28,246.2,0.03]
[1737218647688,30.60547294,246.29,246.2,0.03]
[1737218647885,30.60547294,246.26,246.2,0.03]
[1737218648086,16.252611,246.41,246.25,30.60547294]
[1737218648318,4.0559,246.55,246.4,30.60547294]
[1737218648506,30.60547294,246.58,246.46,30.60547294]
[1737218648685,30.60547294,246.62,246.5,30.60547294]
[1737218648881,30.60547294,246.62,246.47,0.60853096]
[1737218648882,4.0536,246.69,246.36,0.60841465]
[1737218649398,15.74342702,246.79,246.37,23.776884]
[1737218649607,8.0226156,246.84,246.36,203.85665582]
[1737218649608,8.0226156,246.84,246.48,20.0]
[1737218649788,12.0738156,246.84,246.49,0.60792089]
[1737218649988,30.60547294,246.78,246.65,30.60547294]
[1737218650198,30.60547294,246.78,246.48,30.60547294]
[1737218650199,30.60547294,246.72,246.49,0.60802255]
[1737218650390,30.60547294,246.7,246.59,30.60547294]
[1737218650794,30.60547294,246.62,246.49,0.60802255]
[1737218651101,30.60547294,246.72,246.38,14.2056]
[1737218651102,30.60547294,246.63,246.52,30.60547294]
[1737218651299,30.60547294,246.65,246.52,30.60547294]
[1737218651497,12.13,246.79,246.36,30.60547294]
[1737218651498,30.60547294,246.69,246.58,30.60547294]
[1737218651999,30.60547294,246.73,246.62,30.60547294]
[1737218652315,30.60547294,246.77,246.65,30.60547294]
[1737218652609,30.60547294,246.79,246.67,30.60547294]
[1737218652812,30.60547294,246.72,246.59,30.60547294]
[1737218653301,30.60547294,246.82,246.7,30.60547294]
[1737218653507,30.60547294,246.82,246.61,30.60547294]
[1737218653508,4.0513,246.83,246.72,30.60547294]
[1737218653710,30.60547294,246.82,246.69,30.60547294]
[1737218653903,30.60547294,246.94,246.8,30.60547294]
[1737218654088,5.65471645,247.06,246.83,20.0]
[1737218654288,5.65471645,247.06,246.84,0.60739216]
[1737218654484,4.0493,246.96,246.76,0.60735612]
[1737218654701,12.13,246.93,246.56,16.215373]
[1737218654891,2.106e-05,246.92,246.7,203.24824117]